{"text_format":"1","workbook":"xlsx","n_sheets":6,"sheets":["CalculDesDroits","A lire","Simulateur","Plafonds","CALCUL PLAFOND","DONNEES ETAT CIVIL"],"not_rendered":{"charts":0,"images":4,"macros":1,"external_links":0,"defined_names":41,"comments":2,"pivot_tables":0},"unopened":[],"bounds":{"document_bytes":16777216,"sheet_cells":100000,"rows_first":2000,"rows_last":500,"rows_between":2000,"halvings":0,"cell_chars":16384,"cell_head_chars":4096},"cells_cut":0,"cells_raw":0,"read":"whole","date_system":"1900"}

{"sheet":"CalculDesDroits","index":0,"n_rows":32,"n_cols":10,"rows_kept":32,"cut":false,"hidden":true,"merged":[[12,0,12,2],[20,4,20,8],[21,4,21,8],[1,0,1,2]]}
[]
["SAISIES DES DONNEES UTILISATEURS"]
[]
[null,"Saisie","Manuel",null,null,"Nb de pièce"]
["Situation de familiale",0,{"$f":"Simulateur!B12","v":0},null,"Nb de droits de visite",{"$f":"IF(C5>=1,C8+C9,B8+B9)","v":0}]
["Nombre d'enfant à charge",0,{"$f":"IF(Simulateur!B14=1,0,Simulateur!C6)","v":0},null,0,0]
["Nombre d'enfant à naître",0,{"$f":"IF(Simulateur!B14=1,0,Simulateur!C7)","v":0},null,1,0]
["Nombre d'enfant en droit de visite né",0,{"$f":"IF(Simulateur!B14=1,0,Simulateur!C8)","v":0},null,2,1]
["Nombre d'enfant en droit de visite et à naître",0,{"$f":"Simulateur!C9","v":0},null,3,1]
["Résultats",{"$f":"SUM(B5:B9)","v":0},{"$f":"SUM(C5:C9)","v":0},null,4,2]
[null,{"$f":"IF(AND(B5=1,F5=1),1,IF(AND(B5=1,OR(B9>=1,B8>=1)),F19+1,F19))","v":0},{"$f":"IF(AND(C5=1,F5=1),1,IF(AND(C5=1,OR(C9>=1,C8>=1)),F19+1,F19))","v":0},null,5,2]
[null,{"$f":"IF(B10>C10,SUM(B5+B6+B8),SUM(C5+C6+C8))","v":0},null,null,6,3]
["RESULTATS DES DROITS",null,null,null,7,3]
[null,null,null,null,8,3]
["DROITS AU LOGEMENT",null,null,null,9,4]
[null,null,null,null,10,4]
[null,null,null,null,11,4]
["Situation de familiale",{"$f":"IF(C10>=1,C5,B5)","v":0},null,null,12,5]
["Nombre d'enfant à charge",{"$f":"IF(C10>=1,C6,B6)","v":0},null,null,"Résultat",{"$f":"VLOOKUP(F5,E6:F18,2,FALSE)","v":0}]
["Nombre d'enfant à naître à charge",{"$f":"IF(C10>=1,C7,B7)","v":0}]
["Nombre d'enfant en droit de visite et à naître",{"$f":"IF(C10>=1,C11,B11)","v":0},null,null,"Prise en compte des droits de visite pour le calcul du plafond fiscal"]
["Résultats",{"$f":"IF(Simulateur!C5=\"Célibataire géographique\",1,IF(AND(B18=1,OR(B19>=1,B20>=1),B21=0),SUM(B18:B20)+1,IF(AND(B18=1,B19=0,B20=0,B21=1),2,SUM(B18:B21))))","v":0},null,null,"Oui",null,null,null,null,{"$f":"IF(E22=\"oui\",1,0)","v":1}]
[null,null,null,null,{"$f":"IF(Simulateur!C5=\"Couple moins de 55 ans\",\"OUI\",\"NON\")","v":"NON"},"Couple de moins de 55 ans"]
["DROITS FISCAL",null,null,null,{"$f":"IF(Simulateur!C11=\"OUI\",\"OUI\",\"NON\")","v":"NON"},"Signalement d'une personne handicapé"]
[]
[]
["Situation de familiale",{"$f":"IF(AND(OR(C10>=1,B10>=1),E23=\"OUI\",B29>=1),3,IF(AND(OR(C10>=1,B10>=1),E23=\"OUI\",SUM(B28+B30)=0),3,IF(C10>=1,C5,B5)))","v":0}]
["Nombre d'enfant à charge",{"$f":"IF(C10>=1,C6,B6)","v":0}]
["Nombre d'enfant à naître à charge"]
["Nombre d'enfant en droit de visite né",{"$f":"IF(J22=0,0,IF(C10>=1,C8,B8))","v":0},null,null,"Surclassement = Une personne seule avec au moins un enfant à charge et sans droit(s) de visite(s)"]
["Résultats",{"$f":"IF(AND(E24=\"OUI\",B30=0,E23=\"NON\"),SUM(B27:B30)+1,IF(AND(B27=1,B28>=1,B30=0),SUM(B27:B30)-(B21)+1,IF(AND(B27=1,B28=0,B29=0,B30=1),B27+1,SUM(B27:B30))))","v":0},null,null,"Typologie maximum de droit.",null,{"$f":"IF(AND(B18=1,B22>2),B22,IF(B18=1,B22+1,IF(B18>=2,B22+1,B22+1)))","v":1}]
[null,null,null,null,"Surface logement",{"$f":"IF(B12=0,\"\",IF(B12>=8,70,IF(B12<=2,16,IF(B12>1,((B12-2)*9)+16,SUM(B12*9)+16))))","v":""}]

{"sheet":"A lire","index":1,"n_rows":16,"n_cols":1,"rows_kept":16,"cut":false,"hidden":false,"merged":[]}
[" À lire avant de simuler vos droits"]
["Pour un même plafond fiscal, il peut exister plusieurs appellations équivalentes."]
[]
["Le PLAI, le PLA LM ou le PLA TS sont des termes équivalents. \"Mentionnés pour tous les cas, PLAI sur le simulateur\""]
["Le PLA, le PLUS, le HLM, le PALULOS ou le PLA +35 sont des termes équivalents. \"Mentionnés pour tous les cas, PLA sur le simulateur\""]
["Les plafonds fiscaux sont suivis d'un chiffre : PLAI-2, PLS 3, PLI 2, Etc... Ce chiffre correspond à la zone d'implantation du logement"]
[]
["Votre référence fiscale est valide \"uniquement\" pour votre droit au logement. Par conséquent, si vous souhaitez candidater sur un logement d'une pièce supérieure, il faut vérifier si le plafond social du logement correspond au vôtre et ne surtout pas comparer vôtre montant fiscal.\n (Ex : le simulateur indique que vous êtes en droit F2 pour un plafond fiscal en PLS 2, vous ne pouvez pas postuler sur un F3 en PLA 2 mais vous pouvez postuler sur les F3 avec les plafonds sociaux suivants : [PLS 2 et 3] [PLI 1, 2 et 3] [AUCUN]"]
[]
[]
["Lien internet \"Conditions d'attribution d'un logement social\" Service-Public.fr"]
[]
["                                                                                                                                                                                  Accéder au simulateur"]
[]
[]
["Les données sources de ce simulateur sont valides jusqu'au 31/01/2023"]

{"sheet":"Simulateur","index":2,"n_rows":23,"n_cols":4,"rows_kept":23,"cut":false,"hidden":false,"merged":[[16,2,16,3],[17,2,18,3],[0,1,0,3],[12,1,12,3],[13,2,13,3],[14,2,14,3],[15,2,15,3]]}
[null,"Simulateur \"plafond social\" pour l'attribution d'un logement"]
[null,{"$f":"MONTH(C3)","v":2}]
[null,null,{"$f":"TODAY()","v":"2022-02-18"},"Exemple"]
[null,{"$f":"IF(OR(B2=11,B2=12),\"Revenu fiscal de référence\"&\" \"&YEAR(C3)-1&\" \"&\"déclaré en\"&\" \"&YEAR(C3),\"Revenu fiscal de référence\"&\" \"&YEAR(C3)-2&\" \"&\"déclaré en\"&\" \"&YEAR(C3)-1)","v":"Revenu fiscal de référence 2020 déclaré en 2021"},null,35000]
[null,"Situation familiale",null,"Divorcé(e) ou séparé(e)"]
[null,"Nombre d'enfant à charge fiscale",null,2]
[null,"Nombre d'enfant à naître",null,1]
[null,"Nombre d'enfant en droit de visite né, âge < à 18 ans"]
[null,"Nombre d'enfant en droit de visite à naître"]
[null,"Ressources mensuelles"]
[null,"Personne(s) handicapée(s) au sein du logement",null,"Non"]
[null,{"$f":"IF(C5=0,0,VLOOKUP(C5,'DONNEES ETAT CIVIL'!A3:B12,2,FALSE))","v":0},null,"PLA 2 (*)"]
[null,{"$f":"IF(A23=0,\"\",\"Si vous êtes propriétaire d'un logement, à moins d'une heure trente de votre lieu d'affectation, d'une surface de\"&\" \"&CalculDesDroits!F32&\" \"&\"m2,\"&\" \"&\"vous êtes en Aucun et vous ne pouvez pas postuler sur un logement social. \nEn raison de difficultés rencontrées avec certains bailleurs sociaux, les propriétaires et les multipropriétaires sont étudiés au cas par cas.\")","v":""}]
[null,"PLAI = Très social",{"$f":"IF(A23=1,\"RESULTATS\",\"Veuillez saisir [au minimum] les éléments affichés en rouge pour obtenir un résultat\")","v":"Veuillez saisir [au minimum] les éléments affichés en rouge pour obtenir un résultat"}]
[null,"PLA  = Social (*)",{"$f":"IF(A23=0,\"\",\"Vous êtes en\"&\" \"&'CALCUL PLAFOND'!C23)","v":""}]
[null,"PLS  = Social élevé",{"$f":"IF(A23=0,\"\",\"Votre droit au logement est de type F\"&\"\"&CalculDesDroits!B22&\".\"&\" Sous réserve, maximum F\"&CalculDesDroits!G31&\" \"&\"sur du logement social.\")","v":""}]
[null,"PLI   = Social très élevé",{"$f":"IF(A23=0,\"\",\"Pour un loyer supérieur à\"&\" \"&TEXT(A18,\"# ##0 €\")&\" et inférieur à \"&TEXT(A19,\"# ##0 €\"&\",\"))","v":""}]
[{"$f":"C10*17/100","v":0},"Aucun = Non social",{"$f":"IF(A23=0,\"\",\"sur les logements ayant les plafonds sociaux suivants :\"&\"                                                                                                                                 \"&VLOOKUP('CALCUL PLAFOND'!C23,Plafonds!A3:B10,2,FALSE))","v":""}]
[{"$f":"C10*31/100","v":0}]
[]
["Oui"]
["Non"]
[{"$f":"IF(AND(C4>0,C5>0,C10>0,C11>0),1,0)","v":0}]

{"sheet":"Plafonds","index":3,"n_rows":10,"n_cols":2,"rows_kept":10,"cut":false,"hidden":true,"merged":[]}
[]
[]
["PLA-I 2","[PLA-I, PLA-TS, PLA LM (2 et 3)] [PLA, PLUS, HLM, PALULOS (1, 2 et 3)] [PLS et PLI (1, 2 et 3)] [AUCUN]"]
["PLA-I 3","[PLA-I, PLA-TS, PLA LM (3)] [PLA, PLUS, HLM, PALULOS (1, 2 et 3)] [PLS et PLI (1, 2 et 3)] [AUCUN]"]
["PLA 2","[PLA, PLUS, HLM, PALULOS (2 et 3)] [PLS et PLI (1, 2 et 3)] [AUCUN]"]
["PLA 3","[PLA, PLUS, HLM, PALULOS (3)] [PLS et PLI (1, 2 et 3)] [AUCUN]"]
["PLS 2","[PLS (2 et 3)] [PLI (1, 2 et 3)] [AUCUN]"]
["PLS 3","[PLS (3)] [PLI (1, 2 et 3)] [AUCUN]"]
["PLI 2","[PLI (2 et 3)] [AUCUN]"]
["AUCUN","AUCUN, vous ne pouvez pas postuler sur les logements sociaux."]

{"sheet":"CALCUL PLAFOND","index":4,"n_rows":23,"n_cols":23,"rows_kept":23,"cut":false,"hidden":true,"merged":[[0,13,0,14],[0,1,0,2],[0,3,0,4],[0,5,0,6],[0,7,0,8],[0,9,0,10],[0,11,0,12],[0,22,0,23],[20,18,22,24],[14,18,14,19],[1,18,1,23],[3,18,6,23]]}
["Catégorie de ménages","PLA-I 2",null,"PLA-I 3",null,"PLA 2",null,"PLA 3",null,"PLS 2",null,"PLS 3",null,"PLI 2",null,null,"Résultat",null,"Mise à jour le","2022-01-12",{"$f":"IF(T1>W1:W1,1,IF(AND(YEAR(T1)<YEAR(W1),YEAR(T1)<>YEAR(W1)),1,IF(YEAR(T1)>YEAR(W1),1,IF(YEAR(T1)=YEAR(W1),2,0))))","v":2},null,{"$f":"TODAY()","v":"2022-02-18"}]
[1,{"$f":"IF(AND($C$22=A2,$C$17<=C2),\"oui\",\"non\")","v":"non"},13378,{"$f":"IF(AND($C$22=A2,$C$17<=E2),\"oui\",\"non\")","v":"non"},13378,{"$f":"IF(AND($C$22=A2,$C$17<=G2),\"oui\",\"non\")","v":"non"},24316,{"$f":"IF(AND($C$22=A2,$C$17<=I2),\"oui\",\"non\")","v":"non"},24316,{"$f":"IF(AND($C$22=A2,$C$17<=K2),\"oui\",\"non\")","v":"non"},31611,{"$f":"IF(AND($C$22=A2,$C$17<=M2),\"oui\",\"non\")","v":"non"},31611,{"$f":"IF(AND($C$22=A2,$C$17<=O2),\"oui\",\"non\")","v":"non"},38465,{"$f":"IF(B2=\"oui\",$B$1,IF(D2=\"oui\",$D$1,IF(F2=\"oui\",$F$1,IF(H2=\"oui\",$H$1,IF(J2=\"oui\",$J$1,IF(L2=\"oui\",$L$1,IF(N2=\"oui\",$N$1,0)))))))","v":0},{"$f":"IF(AND($C$22=A2,O2<$C$17),\"AUCUN\",P2)","v":0}]
[2,"non",21805,"non",21805,"non",36341,"non",36341,"non",47243,"non",47243,"non",57489,0,0]
[3,"non",26210,"non",28582,"non",43684,"non",47639,"non",56789,"non",61931,"non",75361,0,0]
[4,"non",28779,"non",31287,"non",52326,"non",56878,"non",68024,"non",73941,"non",89976,0,0]
[5,"non",34071,"non",37218,"non",61944,"non",67672,"non",80527,"non",87974,"non",107063,0,0]
[6,"non",38339,"non",41884,"non",69707,"non",76149,"non",90619,"non",98994,"non",120463,0,0]
[7,"non",{"$f":"C7+$C$16","v":42609},"non",{"$f":"E7+$E$16","v":46550},"non",{"$f":"G7+$G$16","v":77474},"non",{"$f":"I7+$I$16","v":84635},"non",{"$f":"K7+$K$16","v":100716},"non",{"$f":"M7+$M$16","v":110026},"non",{"$f":"O7+$O$16","v":133884},0,0]
[8,"non",46879,"non",51216,"non",85241,"non",93121,"non",110813,"non",121058,"non",147305,0,0]
[9,"non",51149,"non",55882,"non",93008,"non",101607,"non",120910,"non",132090,"non",160726,0,0]
[10,"non",55419,"non",60548,"non",100775,"non",110093,"non",131007,"non",143122,"non",174147,0,0]
[11,"non",59689,"non",65214,"non",108542,"non",118579,"non",141104,"non",154154,"non",187568,0,0]
[12,"non",63959,"non",69880,"non",116309,"non",127065,"non",151201,"non",165186,"non",200989,0,0]
[13,"non",68229,"non",74546,"non",124076,"non",135551,"non",161298,"non",176218,"non",214410,0,0]
[null,null,null,null,null,null,null,null,null,null,null,null,null,null,null,null,{"$f":"IF(Q9>0,Q9,IF(Q8>0,Q8,IF(Q7>0,Q7,IF(Q6>0,Q6,IF(Q5>0,Q5,IF(Q4>0,Q4,IF(Q3>0,Q3,IF(Q2>0,Q2,\"AUCUN\"))))))))","v":"AUCUN"}]
["Personne supplémentaire",null,4270,null,4666,null,7767,null,8486,null,10097,null,11032,null,13421]
["Référence fiscale",null,{"$f":"Simulateur!C4","v":0}]
["Nombre de personne physique",null,{"$f":"CalculDesDroits!B27+CalculDesDroits!B28","v":0}]
["Nombre d'enfant à naître",null,{"$f":"CalculDesDroits!B29","v":0}]
["Nombre d'enfant en droit de visite",null,{"$f":"CalculDesDroits!B30","v":0}]
[]
["Droit fiscale",null,{"$f":"CalculDesDroits!B31","v":0}]
["Résultat du plafond",null,{"$f":"IF(Simulateur!C5=\"Célibataire géographique\",\"AUCUN\",IF(Q14>0,Q14,IF(Q13>0,Q13,IF(Q12>0,Q12,IF(Q11>0,Q11,IF(Q10>0,Q10,Q15))))))","v":"AUCUN"}]

{"sheet":"DONNEES ETAT CIVIL","index":5,"n_rows":10,"n_cols":2,"rows_kept":10,"cut":false,"hidden":true,"merged":[[1,0,1,1]]}
[]
["Situation de famille"]
["Célibataire",1]
["Célibataire géographique",1]
["Couple moins de 55 ans",2]
["Concubinage",2]
["Divorcé(e) ou séparé(e)",1]
["Marié(e)",2]
["Pacsé(e)",2]
["Veuf(ve)",1]